Cogmind - Beta 15 @@@ ROGUE MODE // 2025.07.13 @ 00:33:28 Player: McSaucyNugget Result: Defending 0bPrime! Performance ------------- Evolutions (7) 3500 Regions Visited (24) 4800 Robots Destroyed (278) 1390 Value Destroyed (14197) 14197 Prototype IDs (148) 2960 Alien Tech Used (6) 1200 Bonus (42057) 42057 TOTAL SCORE: 70104 Bonus ------- High Alert Combat Kills 5710 Follower Combat Kills 2478 Network Hubs Disabled 400 Registered with UFD 300 Met Optimus in HQ 500 Met Zhirov 300 Built Enhanced Grunts 300 A7 Reached Mainframe 300 Destroyed Superfortress 15000 Met Optimus at Protoforge 1000 Completed Drillbomb Mission10000 Optimus Survived to 0b1 3000 Win 3000 Friendly Fire -231 Cogmind --------- Core Integrity 276/1300 Matter 300/300 Energy 280/280 System Corruption 16% Temperature Cool (0) Movement Hovering (40) Location 0bPrime Parts ------- > --- POWER (2) -------- Light Quantum Reactor Light Quantum Reactor > --- PROPULSION (6) --- Experimental Antigrav System Experimental Antigrav System Concept Combat Aerolev Unit Concept Combat Aerolev Unit Concept Gyrokinetic System Concept Gyrokinetic System > --- UTILITY (10) ----- Concept Antigrav Storage Unit Experimental Optical Array Experimental Core Analyzer Experimental Core Analyzer Experimental Reaction Control System Experimental Cloaking Device Makeshift Propulsion Shielding Concept RG22 Armor Concept RG22 Armor Concept RG22 Armor > --- WEAPON (3) ------- Concept Helical Railcannon > --- INVENTORY (25) --- Light Antimatter Reactor Concept Combat Aerolev Unit Concept Combat Aerolev Unit Concept NT7 Matterbank (750) Concept Recoil Nullifier Experimental Kinecellerator Experimental Weapon Shielding Centrium Light Armor Plating Concept Matter Streamer Compact Linear Accelerator Concept Miniperforator Concept Helical Railcannon Concept Tiamat Rocket Array Plasma Lance Peak State ------------ > --- POWER ------------ Improved Quantum Reactor Improved Quantum Reactor > --- PROPULSION ------- Experimental Antigrav System Experimental Antigrav System Concept Combat Aerolev Unit Concept Combat Aerolev Unit Concept Gyrokinetic System Concept Gyrokinetic System > --- UTILITY ---------- Concept Antigrav Storage Unit Experimental Optical Array Experimental Salvage Targeting Computer Experimental Core Analyzer Experimental Core Analyzer Concept Reaction Jets Concept Core Shell Centrium Medium Armor Plating Concept RG22 Armor Concept RG22 Armor > --- WEAPON ----------- Helical Railgun Concept XC Strikerail Concept XC Strikerail > --- INVENTORY -------- Improved Quantum Reactor Concept Combat Aerolev Unit Concept Combat Aerolev Unit Concept NT7 Matterbank Concept Networked Targeting System Concept Recoil Nullifier Experimental Kinecellerator Experimental Cloaking Device Concept RG22 Armor Concept Matter Streamer Transdimensional Reconstructor Concept Miniperforator Concept Helical Railcannon Concept Helical Railcannon Concept Tiamat Rocket Array UFD Drillbomb [Rating: 261] Favorites ----------- Power Light Deuterium Engine Engine Light Deuterium Engine Power Core Micro Nuclear Core Reactor Improved Quantum Reactor Propulsion Improved VTOL Module Treads Light Treads Leg Experimental VSS Leg Wheel Wheel Hover Unit Concept Combat Aerolev Unit Flight Unit Improved VTOL Module Utility Improved Hacking Suite Device Advanced Heat Sink Storage Huge Storage Unit Processor Experimental Core Analyzer Hackware Improved Hacking Suite Protection Hardened Medium Armor Plating Weapon Concept XC Strikerail Energy Gun Heavy Particle Gun Energy Cannon Advanced Beam Cannon Ballistic Gun Concept XC Strikerail Ballistic Cannon Bore Cannon Launcher Grenade Launcher Special Weapon Remote Datajack Slashing Weapon Phasing Sabre Piercing Weapon Heavy Pick Special Melee Weapon Improved Datajack Build | -11 -10 -10 -10 -9 -8 -8 -8 -8 -6 -6 -6 -6 -6 -5 -5 -5 -5 -5 -5 -4 -4 -3 -3 -3 ------- Run | Yrd Mat Min Exi Min Mat Sto Rec Scr Fac Ext Cet Arc Hub Fac Was Fac Upp Upp Zhi Pro Fac Res Qua Frg Slots Evolved 14 | . . . . . 4 . . . 4 . . . . 2 . . . . . . 2 2 . . Power 1 | . . . . . . . . . . . . . . . . . . . . . 1 . . . Propulsion 4 | . . . . . 1 . . . 1 . . . . 1 . . . . . . 1 . . . Utility 8 | . . . . . 2 . . . 3 . . . . 1 . . . . . . . 2 . . Weapon 1 | . . . . . 1 . . . . . . . . . . . . . . . . . . . Parts Attached 270 | 7 6 3 . 2 24 13 . 9 9 53 5 9 . 1 3 12 . . 2 1 7 3 10 91 Power 35 | 1 . 1 . . 4 1 . . . 9 . 1 . 1 . 3 . . 1 . . . 2 11 Engine 14 | 1 . 1 . . 4 1 . . . 5 . 1 . . . 1 . . . . . . . . Core 7 | . . . . . . . . . . 3 . . . 1 . 2 . . . . . . 1 . Reactor 14 | . . . . . . . . . . 1 . . . . . . . . 1 . . . 1 11 Propulsion 57 | 2 2 . . . 6 3 . 3 2 10 1 . . . . 2 . . . . . 1 2 23 Treads 12 | 2 . . . . 2 . . . . 7 1 . . . . . . . . . . . . . Leg 14 | . . . . . . . . . . . . . . . . . . . . . . . . 14 Wheel 10 | . 2 . . . 3 2 . . . 3 . . . . . . . . . . . . . . Hover 7 | . . . . . . . . . . . . . . . . . . . . . . . . 7 Flight 14 | . . . . . 1 1 . 3 2 . . . . . . 2 . . . . . 1 2 2 Utility 112 | 1 2 1 . . 5 4 . 4 6 18 2 6 . . 3 6 . . 1 . 6 2 5 40 Device 38 | . . 1 . . 4 1 . . 3 5 . . . . . 3 . . 1 . 3 2 2 13 Storage 8 | 1 2 . . . . . . . . 1 . . . . . 1 . . . . . . . 3 Processor 18 | . . . . . 1 . . . 3 3 . . . . 1 1 . . . . 2 . 1 6 Hackware 11 | . . . . . . . . 2 . 1 . 6 . . . . . . . . 1 . 1 . Protection 37 | . . . . . . 3 . 2 . 8 2 . . . 2 1 . . . . . . 1 18 Artifact . | . . . . . . . . . . . . . . . . . . . . . . . . . Weapon 66 | 3 2 1 . 2 9 5 . 2 1 16 2 2 . . . 1 . . . 1 1 . 1 17 Energy Gun 20 | 2 . 1 . . 6 1 . . . 6 1 1 . . . . . . . . . . . 2 Energy Cannon 5 | . . . . 1 . 1 . . . . . . . . . . . . . . . . 1 2 Ballistic Gun 17 | 1 1 . . 1 1 3 . . . 2 1 1 . . . 1 . . . . . . . 5 Ballistic Cannon 6 | . . . . . . . . . . 2 . . . . . . . . . . . . . 4 Launcher 3 | . 1 . . . 1 . . . . . . . . . . . . . . . . . . 1 Special Weapon 1 | . . . . . . . . 1 . . . . . . . . . . . . . . . . Impact Weapon . | . . . . . . . . . . . . . . . . . . . . . . . . . Slashing Weapon 9 | . . . . . 1 . . . 1 4 . . . . . . . . . 1 1 . . 1 Piercing Weapon 3 | . . . . . . . . 1 . . . . . . . . . . . . . . . 2 Special Melee Weapon 2 | . . . . . . . . . . 2 . . . . . . . . . . . . . . Unidentified Prototypes 25 | . . . . . 3 5 . . 1 . 4 . . . . . . . 3 . 2 . 2 5 Corrupted Parts 3 | . . . . . . . . . . . 3 . . . . . . . . . . . . . System Corruption 18 | . . . . . . . . . . . 18 . . . . . . . . . . . . . Parts Lost 63 | . . 2 . 2 10 5 . . 1 21 1 . . . . 3 . . . . 1 . 2 15 Power 10 | . . 1 . 1 1 1 . . . 3 . . . . . 1 . . . . . . . 2 Propulsion 15 | . . . . . 3 2 . . . 6 1 . . . . 1 . . . . . . . 2 Utility 20 | . . . . . 1 1 . . 1 7 . . . . . 1 . . . . 1 . 1 7 Weapon 18 | . . 1 . 1 5 1 . . . 5 . . . . . . . . . . . . 1 4 Highest Loss Streak 10 | . . 2 . 2 3 5 . . 1 10 1 . . . . 3 . . . . 1 . 1 5 To Critical Strikes 3 | . . . . . . . . . . 3 . . . . . . . . . . . . . . Average Backups 14 | 2 6 12 15 17 22 23 22 23 4 7 10 6 5 4 5 8 9 9 10 10 9 9 9 18 Power . | . 1 1 2 2 1 . . . . . 1 1 1 1 1 1 2 2 1 1 1 1 1 1 Propulsion 4 | 1 3 6 8 8 9 10 9 8 1 4 6 3 2 1 2 2 2 2 2 2 1 2 1 2 Utility 5 | . . 2 4 5 7 7 8 8 2 2 1 1 2 2 2 4 5 5 5 5 5 4 3 9 Weapon 2 | . 1 1 1 2 3 5 5 5 . . 2 . . . . . . . 1 . . . . 4 Tool/Special . | . . . . . . . . . . . . . . . . . . . . . . . . . Unused Backups 75 | . . 3 . . 13 6 . 10 3 1 . 1 . 1 . . . . 2 . . . 2 33 Power 7 | . . . . . 1 . . . . . . . . 1 . . . . 1 . . . . 4 Propulsion 25 | . . 3 . . 10 2 . 3 . . . . . . . . . . . . . . . 7 Utility 26 | . . . . . 2 4 . 5 1 1 . . . . . . . . 1 . . . . 12 Weapon 14 | . . . . . . . . 2 2 . . 1 . . . . . . . . . . . 9 Tool/Special 3 | . . . . . . . . . . . . . . . . . . . . . . . 2 1 Average Slot Usage (%) 91 | . 84 96 100 89 93 98 100 98 83 90 85 81 86 82 85 87 88 88 87 90 88 80 84 93 Engine 4 | . 14 14 14 4 7 9 9 8 6 3 . 3 6 3 . . . . . . . . . . Core 1 | . . . . . . . . . . 2 . . . 1 5 4 5 5 5 5 5 4 4 . Reactor 2 | . . . . . . . . . . . 6 2 . . . . . . . . . . 1 7 Treads 5 | . 26 . . . 7 9 9 8 . 12 12 5 . . . . . . . . . . . . Leg 3 | . . . . . . . . . . . . . . . . . . . . . . . . 13 Wheel 7 | . 1 28 28 28 17 17 18 17 . 1 . . . . . . . . . . . . . . Hover 2 | . . . . . . . . . . . . . . . . . . . . . . . . 10 Flight 7 | . . . . . . . . . 25 8 . 15 26 29 29 28 29 29 29 29 30 28 23 1 Device 9 | . . 10 14 14 18 16 9 8 8 9 13 5 . . . 3 5 5 5 5 5 6 13 9 Storage 6 | . 14 14 14 14 9 9 9 8 . 3 6 2 . . . 4 5 5 5 5 5 4 4 4 Processor 7 | . . . . . 7 3 . . 9 4 7 6 6 5 5 6 11 11 11 11 9 9 10 18 Hackware 5 | . . . . . . . . . 12 11 6 19 33 29 29 24 17 17 17 17 15 14 12 . Protection 9 | . . . . . . 7 18 17 6 12 11 7 6 5 8 5 5 5 4 5 5 5 3 12 Energy Gun 6 | . 10 24 14 15 14 16 9 8 . 7 7 2 . . . . . . . . . . . . Energy Cannon 1 | . . . . 2 1 1 9 8 . . . . . . . . . . . . . . . . Ballistic Gun 6 | . 17 1 . 4 7 8 9 7 . 2 11 5 . . . . . . . . . . . 10 Slashing Weapon 1 | . . . . . . . . . 4 2 . 3 6 5 5 4 5 5 5 7 10 6 7 . Peak Build Rating 261 | 6 8 11 11 13 33 37 38 39 60 59 87 89 69 74 82 88 72 72 76 77 96 98 134 261 Average Rating 88 | 4 6 10 11 11 21 35 37 37 53 49 78 69 69 73 75 75 72 72 71 74 86 90 104 223 On Entrance 53 | . 6 6 11 11 11 33 37 38 33 55 51 87 69 69 74 77 72 72 72 72 77 88 98 108 Naked Turns 7 | . . . . . . . . 7 . . . . . . . . . . . . . . . . Heaviest Build 127 | 13 88 92 92 92 96 112 112 112 17 51 53 54 20 20 18 27 26 26 26 25 26 35 37 127 Greatest Support 168 | 40 40 32 32 32 32 26 20 20 21 80 100 100 20 25 25 28 26 26 26 26 31 32 41 168 Greatest Overweight (x) 11 | . 5 2 2 2 9 11 5 5 . 2 2 1 . . . 1 . . . . . 1 1 3 Average Overweight (x) . | . . 2 2 2 2 3 5 4 . . . . . . . . . . . . . . . . Largest Inventory Capacity 25 | 8 25 25 25 25 25 25 25 25 5 10 10 10 5 5 5 10 10 10 10 10 10 10 10 25 Average Capacity 17 | 7 10 25 25 25 25 25 25 24 5 7 10 7 5 5 5 9 10 10 10 10 10 10 10 22 Most Carried 25 | 4 9 15 15 20 25 25 25 25 5 10 10 10 5 5 5 10 9 10 10 10 10 10 10 25 Average Carried 15 | 2 6 12 15 17 22 24 23 24 4 7 10 6 5 4 5 8 9 9 9 9 9 9 9 20 Final Capacity 25 | 8 25 25 25 25 25 25 25 5 5 10 10 5 5 5 5 10 10 10 10 10 10 10 10 25 Final Carried 25 | 3 9 15 15 20 25 21 25 5 5 10 10 5 5 5 5 9 9 10 10 10 10 10 10 14 Class Distribution -------------------- 18% | Scavenger-Gunner 17% | Tank 13% | Mutant 11% | Hacker-Scout 9% | Scavenger-Tank 6% | Scavenger-Mutant 4% | Commander-Tank 3% | Hacker-Sprinter 3% | Wizard-Sprinter 3% | Commander-Sprinter Dominant Class ---------------- Mutant | -10/Materials Mutant | -10/Mines Mutant | -10/Exiles Mutant | -9/Mines Scavenger-Gunner | -8/Materials Scavenger-Gunner | -8/Storage Tank | -8/Recycling Tank | -8/Scraptown Hacker-Scout | -6/Factory Scavenger-Tank | -6/Extension Commander-Tank | -6/Cetus Commander-Sprinter | -6/Archives Commander-Sprinter | -6/Hub_04(d) Wizard-Sprinter | -5/Factory Wizard-Sprinter | -5/Waste Hacker-Sprinter | -5/Factory Hacker-Scout | -5/Upper Caves Hacker-Scout | -5/Upper Caves Hacker-Scout | -5/Zhirov Hacker-Scout | -4/Proximity Caves Hacker-Scout | -4/Factory Hacker-Scout | -3/Research Hacker-Ninja | -3/Quarantine Scavenger-Gunner | -3/Protoforge Resources | -11 -10 -10 -10 -9 -8 -8 -8 -8 -6 -6 -6 -6 -6 -5 -5 -5 -5 -5 -5 -4 -4 -3 -3 -3 ----------- Run | Yrd Mat Min Exi Min Mat Sto Rec Scr Fac Ext Cet Arc Hub Fac Was Fac Upp Upp Zhi Pro Fac Res Qua Frg Matter Collected 11078 | 259 96 232 . 82 372 272 39 30 180 1015 133 274 17 10 50 66 . 92 . 127 50 103 155 7424 Remotely 3304 | . . . . . . . . . . . . . . . . . . . . . . . . 3304 Salvage Created 13898 | . 486 356 . 255 1301 942 372 . 223 1344 45 396 100 23 . 298 . 92 . 23 29 133 179 7301 Parts 706 | . 30 21 . 28 57 54 13 . 19 48 1 30 3 3 . 23 . 2 . 4 2 5 5 358 Haulers Intercepted 6 | . . . . . 3 1 . . . . . . . . . . . . . . . . 1 1 Recyclers Shooed 5 | . 1 . . 2 . 1 . . . 1 . . . . . . . . . . . . . . Parts Field Recycled . | . . . . . . . . . . . . . . . . . . . . . . . . . Retrieved Matter . | . . . . . . . . . . . . . . . . . . . . . . . . . Parts Self-Destructed 4 | . . . . . . . . . . . . . . . . . . . . 4 . . . . Prevented . | . . . . . . . . . . . . . . . . . . . . . . . . . Kills | -11 -10 -10 -10 -9 -8 -8 -8 -8 -6 -6 -6 -6 -6 -5 -5 -5 -5 -5 -5 -4 -4 -3 -3 -3 ------- Run | Yrd Mat Min Exi Min Mat Sto Rec Scr Fac Ext Cet Arc Hub Fac Was Fac Upp Upp Zhi Pro Fac Res Qua Frg Combat Hostiles Destroyed 207 | . 9 6 . 5 20 18 3 . 2 23 1 2 . . . 2 . . . . . . . 116 Melee 7 | . . . . . . . . . 2 2 . . . . . 2 . . . . . . . 1 Guns 119 | . 9 6 . . 12 12 1 . . 15 1 2 . . . . . . . . . . . 61 Cannons 26 | . . . . 2 1 3 2 . . 6 . . . . . . . . . . . . . 12 AOE 53 | . . . . 3 5 3 . . . . . . . . . . . . . . . . . 42 Classes Destroyed 25 | . 4 2 . 1 3 2 . . 1 2 . . . . . 1 . 1 . 1 . . . 7 Worker 13 | . . 4 . 2 1 . . . 5 . . . . . . . . . . . 1 . . . Builder 5 | . . . . 2 . 1 . . . 1 . . . . . . . . . . . 1 . . Tunneler 3 | . . 1 . 2 . . . . . . . . . . . . . . . . . . . . Hauler 6 | . . . . . 3 1 . . . . . . . . . . . . . . . . 1 1 Recycler 17 | . 3 1 . 1 2 1 3 . . 2 . . 1 . . 2 . . . . . 1 . . Minesweeper 1 | . . . . . . . . . . . . . . . . . . . . 1 . . . . Mechanic 6 | . . . . . . . . . . . . . . . . . . . . . . . . 6 Operator 11 | . . . . . 2 . . . . 1 . 7 . . . 1 . . . . . . . . Drone 13 | . . . . . . . . . . . . . . . . . . . . . . . . 13 Watcher 10 | . 1 . . . 2 1 . . 1 1 . . . 1 . . . . . . . . 2 1 Swarmer 27 | . 3 2 . 3 . 2 . . . 3 . . . . . . . . . . . . . 14 Cutter 2 | . . . . . . . . . . . . . . . . 2 . . . . . . . . Saboteur 2 | . . . . . . . . . . . . . . . . . . . . . . . . 2 Grunt 57 | . 6 4 . 2 16 6 . . . 10 . . . . . . . . . . . . . 13 Brawler 8 | . . . . . . . . . . 2 . . . . . . . . . . . . . 6 Duelist 4 | . . . . . . 2 . . . . . . . . . . . . . . . . . 2 Protector 3 | . . . . . . . . . . . . . . . . . . . . . . . . 3 Sentry 31 | . . . . . 4 4 3 . . 4 . 2 . . . . . . . . . . . 14 Demolisher 5 | . . . . . . 4 . . . 1 . . . . . . . . . . . . . . Hunter 9 | . . . . . . . . . . 2 . . . . . . . . . . . . . 7 Programmer 10 | . . . . . . . . . 2 . . . . . . . . . . . . . . 8 Cetus Guard 1 | . . . . . . . . . . . 1 . . . . . . . . . . . . . Hotshot 5 | . . . . . . . . . . . . . . . . . . . . . . . . 5 Decapitator 5 | . . . . . . . . . . . . . . . . . . . . . . . . 5 Immortal 2 | . . . . . . . . . . . . . . . . . . . . . . . . 2 Striker 5 | . . . . . . . . . . . . . . . . . . . . . . . . 5 Executioner 16 | . . . . . . . . . . . . . . . . . . . . . . . . 16 V-Series 1 | . . . . . . . . . . . . . . . . . . . . . . . . 1 Samaritan 2 | . . . . . . . . . . . . . . . . . . 2 . . . . . . Thug 1 | . . . . . . . . . . 1 . . . . . . . . . . . . . . Best Kill Streak 23 | . 5 3 . 3 6 13 2 . 2 5 1 7 1 1 . 2 . . . 1 1 1 2 23 Combat Bots Only 23 | . 5 2 . 3 5 12 1 . 2 5 1 1 . . . 2 . . . . . . . 23 Max Kills in Single Turn 6 | . 1 1 . 3 3 5 1 . 1 2 1 1 1 1 . 1 . 1 . 1 1 1 1 6 Gunslinging 2 | . . . . . . . . . . . . . . . . . . . . . . . . 2 Exploded 6 | . . . . 3 3 3 . . . . . . . . . . . . . . . . . 6 Melee 1 | . . . . . . . . . 1 1 . . . . . 1 . . . . . . . 1 Uniques/NPCs Destroyed . | . . . . . . . . . . . . . . . . . . . . . . . . . Combat | -11 -10 -10 -10 -9 -8 -8 -8 -8 -6 -6 -6 -6 -6 -5 -5 -5 -5 -5 -5 -4 -4 -3 -3 -3 -------- Run | Yrd Mat Min Exi Min Mat Sto Rec Scr Fac Ext Cet Arc Hub Fac Was Fac Upp Upp Zhi Pro Fac Res Qua Frg Hostile Shots Fired 1385 | . 31 31 . 17 115 61 . . 6 412 13 9 5 3 . 36 10 . . . 7 7 28 594 Missed 541 | . 8 8 . 6 28 14 . . 5 142 5 1 3 1 . 15 7 . . . 4 5 14 275 Hits 844 | . 23 23 . 11 87 47 . . 1 270 8 8 2 2 . 21 3 . . . 3 2 14 319 Melee 18 | . . . . . . . . . . 7 . . . . . 6 . . . . . . . 5 Projectile 826 | . 23 23 . 11 87 47 . . 1 263 8 8 2 2 . 15 3 . . . 3 2 14 314 AOE 16 | . . . . . . 10 . . . 1 . . . . . 1 . . . . . . . 4 Critical Strikes 38 | . . 1 . . 4 3 . . . 7 1 . . . . 1 . . . . . . 1 20 Actively Blocked 3 | . . . . . . . . . . . . . . . . . . . . . . . . 3 Damage Taken 15033 | . 262 280 . 145 1361 1029 . . 20 3096 176 193 36 54 . 580 33 . . . 157 45 246 7320 Core 1957 | . 46 71 . 35 340 117 . . . 453 . . . 23 . 72 . . . . . . 23 777 Absorbed by Shields 1582 | . . . . . . . . . . 397 25 . . . . . . . . . . . . 1160 Redirected to Shielding 852 | . . . . . . . . . . 45 . . . . . . 13 . . . 68 26 46 654 Ignored by Resistances 48 | . . . . . . . . . . 48 . . . . . . . . . . . . . . Regen/Repaired (Parts) 1990 | . . . . . . . . . . 122 . . . . . 353 . . . . 29 57 107 1322 Core Remaining (%) 58 | 100 . . . 39 . . . 16 . . . . 46 . . . . . . 90 100 . . 21 Volleys Fired 511 | . 38 29 . 23 64 36 9 2 . 69 9 9 . . . . . . . . . . 1 222 Largest 3 | . 2 2 . 2 3 3 3 1 . 3 3 3 . . . . . . . . . . 1 3 Hottest 300 | . 70 115 . 133 195 148 148 5 . 209 240 143 . . . . . . . . . . 300 300 Shots Fired 1194 | . 75 54 . 43 156 104 27 2 . 185 26 21 . . . . . . . . . . 1 500 Gun 1063 | . 74 53 . 35 140 99 18 . . 154 26 21 . . . . . . . . . . . 443 Cannon 105 | . . . . 6 10 5 9 . . 31 . . . . . . . . . . . . 1 43 Launcher 24 | . 1 1 . 2 6 . . . . . . . . . . . . . . . . . . 14 Special 2 | . . . . . . . . 2 . . . . . . . . . . . . . . . . Kinetic 757 | . 42 10 . 7 45 35 9 . . 99 9 17 . . . . . . . . . . . 484 Thermal 401 | . 32 43 . 34 95 69 18 . . 86 17 4 . . . . . . . . . . 1 2 Explosive 24 | . 1 1 . 2 6 . . . . . . . . . . . . . . . . . . 14 Electromagnetic 10 | . . . . . 10 . . . . . . . . . . . . . . . . . . . Robot Hit Streak 69 | . 11 18 . 17 25 19 23 24 . 29 15 6 . . . . . . . . . . . 69 Robot Miss Streak 12 | . 4 2 . 3 4 3 . . . 8 5 4 . . . . . . . . . . . 12 Penetration Max 2 | . . . . . . . . . . 2 . . . . . . . . . . . . . 1 Secondary Targets 23 | . . 1 . . . 1 . . . 5 . . . . . . . . . . . . . 16 Max Gunslinging Chain 2 | . . 1 . . . 1 . . . 1 . . . . . . . . . . . . . 2 Shots Hit Robots 928 | . 44 39 . 26 111 61 17 1 9 198 19 31 2 1 . 6 . 3 . 1 2 2 6 349 Core Hits 704 | . 27 18 . 14 62 40 6 . 8 120 16 20 1 1 . 4 . 1 . 1 1 1 2 361 Critical Kills 29 | . . . . . . . . . . 5 . 2 . . . . . . . . . . . 22 Critical Parts Destroyed 42 | . . . . . . . . . . 7 . 1 . . . . . . . . . . . 34 Critical Strikes 103 | . 2 2 . . 7 1 . . . 18 2 3 . . . . . . . . . . 1 67 Burn 15 | . 2 2 . . 7 1 . . . 1 2 . . . . . . . . . . . . . Destroy 82 | . . . . . . . . . . 12 . 3 . . . . . . . . . . . 67 Sever 6 | . . . . . . . . . . 5 . . . . . . . . . . . . 1 . Melee Attacks 285 | . . . . . 1 . . . 45 74 . 14 9 10 . 30 2 14 . 7 29 20 27 3 Impact . | . . . . . . . . . . . . . . . . . . . . . . . . . Slashing 221 | . . . . . 1 . . . 30 28 . 14 9 10 . 30 2 14 . 7 29 20 27 . Piercing 18 | . . . . . . . . . 15 . . . . . . . . . . . . . . 3 Sneak Attacks 75 | . . . . . . . . . 5 50 . 7 2 . . 2 . 3 . 1 1 2 2 . Combat Hostiles . | . . . . . . . . . . . . . . . . . . . . . . . . . Follow-up Attacks 6 | . . . . . . . . . . 4 . . . . . . . . . . . . 2 . Damage Inflicted 37518 | . 487 516 . 574 2163 1686 353 . 770 4184 424 1488 211 54 . 421 . 267 . 127 115 161 364 23153 Guns 20116 | . 487 516 . 298 1412 1136 251 . . 2578 424 463 . . . . . . . . . . . 12551 Cannons 1358 | . . . . 121 124 81 102 . . 525 . . . . . . . . . . . . . 405 Explosions 11448 | . . . . 155 627 469 . . . . . . . . . . . . . . . . . 10197 Melee 4584 | . . . . . . . . . 770 1069 . 1025 211 54 . 421 . 267 . 127 115 161 364 . Ramming 12 | . . . . . . . . . . 12 . . . . . . . . . . . . . . Kinetic 16082 | . 216 107 . 38 241 318 70 . . 1560 220 356 . . . . . . . . . . . 12956 Thermal 5265 | . 271 409 . 381 1168 899 283 . . 1543 204 107 . . . . . . . . . . . . Explosive 11414 | . . . . 155 593 469 . . . . . . . . . . . . . . . . . 10197 Electromagnetic 161 | . . . . . 161 . . . . . . . . . . . . . . . . . . . Impact . | . . . . . . . . . . . . . . . . . . . . . . . . . Slashing 4515 | . . . . . . . . . 701 1069 . 1025 211 54 . 421 . 267 . 127 115 161 364 . Piercing 69 | . . . . . . . . . 69 . . . . . . . . . . . . . . . Highest Corruption 35 | . . . . . . . . . . 17 35 35 35 . . . . . . . 9 . . 16 Average Corruption 12 | . . . . . . . . . . 15 28 35 35 . . . . . . . 4 . . 7 Corruption Purged . | . . . . . . . . . . . . . . . . . . . . . . . . . Corruption Blocked . | . . . . . . . . . . . . . . . . . . . . . . . . . Effects 169 | . . . . . . . . . . 12 24 14 10 . . . . . . . 2 . . 107 Message Errors 43 | . . . . . . . . . . 1 8 5 4 . . . . . . . . . . 25 Matter Fused 44 | . . . . . . . . . . 3 4 5 1 . . . . . . . 1 . . 30 Heat Flow Errors 14 | . . . . . . . . . . 3 1 1 2 . . . . . . . . . . 7 Energy Discharges 14 | . . . . . . . . . . . 4 1 1 . . . . . . . . . . 8 Parts Rejected 4 | . . . . . . . . . . . . 1 . . . . . . . . . . . 3 Parts Fused 1 | . . . . . . . . . . . . . . . . . . . . . . . . 1 Data Loss (minor) 16 | . . . . . . . . . . 1 2 . . . . . . . . . 1 . . 12 Data Loss (major) 8 | . . . . . . . . . . 1 2 . . . . . . . . . . . . 5 Misfires 1 | . . . . . . . . . . . 1 . . . . . . . . . . . . . Alerts 4 | . . . . . . . . . . . 1 . . . . . . . . . . . . 3 Misdirections 7 | . . . . . . . . . . . 1 . 2 . . . . . . . . . . 4 Weapon Failures 13 | . . . . . . . . . . 3 . 1 . . . . . . . . . . . 9 Overload Shots 1 | . . . . . . . . . . . 1 . . . . . . . . . . . . . Overflow Damage 1001 | . . . . . . 28 . . 21 208 . 360 65 . . 55 . 76 . . . 50 63 75 Projectiles 7 | . . . . . . . . . . 7 . . . . . . . . . . . . . . Explosions 103 | . . . . . . 28 . . . . . . . . . . . . . . . . . 75 Melee 891 | . . . . . . . . . 21 201 . 360 65 . . 55 . 76 . . . 50 63 . Knockbacks 11 | . . . . . . . . . . 4 . . . . . . . . . . . . . 7 Impact . | . . . . . . . . . . . . . . . . . . . . . . . . . Kinetic 10 | . . . . . . . . . . 3 . . . . . . . . . . . . . 7 Secondary 1 | . . . . . . . . . . 1 . . . . . . . . . . . . . . Self-Inflicted Damage 284 | . . . . 22 . . . . . 3 . . . . . . . . . . . . . 259 Shots 8 | . . . . 1 . . . . . . . . . . . . . . . . . . . 7 Rammed 4 | 1 . . . . . . . . . 2 . . 1 . . . . . . . . . . . Targets Rammed 4 | 1 . . . . . . . . . 2 . . 1 . . . . . . . . . . . Kicked . | . . . . . . . . . . . . . . . . . . . . . . . . . Crushed . | . . . . . . . . . . . . . . . . . . . . . . . . . Highest Temperature 298 | . 277 194 . 137 298 281 172 . . 238 205 228 201 7 . 22 . . . . 52 16 174 190 Average Temperature 60 | . 103 68 . 32 61 81 64 . . 77 85 105 106 3 . 12 . . . . 15 4 91 73 Received Heat Transfer 2899 | . 114 159 . 66 738 315 . . 9 713 9 18 . 12 . 66 . . . . . 18 30 632 Effects 2 | . . . . . 1 . . . . 1 . . . . . . . . . . . . . . Energy Bleed 2 | . . . . . 1 . . . . 1 . . . . . . . . . . . . . . Siege Activations . | . . . . . . . . . . . . . . . . . . . . . . . . . Martial Activations . | . . . . . . . . . . . . . . . . . . . . . . . . . Shielding Activations . | . . . . . . . . . . . . . . . . . . . . . . . . . Robots Disrupted . | . . . . . . . . . . . . . . . . . . . . . . . . . Combat Hostiles . | . . . . . . . . . . . . . . . . . . . . . . . . . Robots Corrupted . | . . . . . . . . . . . . . . . . . . . . . . . . . Combat Hostiles . | . . . . . . . . . . . . . . . . . . . . . . . . . Parts Fried 1 | . . . . . . . . . . . . 1 . . . . . . . . . . . . Impact Corruptions . | . . . . . . . . . . . . . . . . . . . . . . . . . Robots Melted 2 | . . . . . 2 . . . . . . . . . . . . . . . . . . . Combat Hostiles 2 | . . . . . 2 . . . . . . . . . . . . . . . . . . . Parts Melted 28 | . . 2 . . 12 6 . . . 4 1 1 . . . . . . . . . . . 2 Heat Transferred 12443 | . 962 1258 . 851 3158 1776 518 . . 3217 555 148 . . . . . . . . . . . . Parts Sabotaged 6 | . . . . . . . . . . 2 . . . . . . . . . . . . . 4 Parts Stolen . | . . . . . . . . . . . . . . . . . . . . . . . . . Parts Stripped . | . . . . . . . . . . . . . . . . . . . . . . . . . Power Chain Reactions 1 | . . . . . 1 . . . . . . . . . . . . . . . . . . . Alert | -11 -10 -10 -10 -9 -8 -8 -8 -8 -6 -6 -6 -6 -6 -5 -5 -5 -5 -5 -5 -4 -4 -3 -3 -3 ------- Run | Yrd Mat Min Exi Min Mat Sto Rec Scr Fac Ext Cet Arc Hub Fac Was Fac Upp Upp Zhi Pro Fac Res Qua Frg Maximum Alert Level 5 | . . . . . 1 1 . . . 5 3 2 2 1 . . . . . . . . . 5 Low Security (%) 51 | 100 100 100 . 100 85 83 100 . 100 17 . . 38 87 100 100 . . . . 100 100 100 2 Level 1 12 | . . . . . 14 16 . . . 43 . 2 31 12 . . . . . . . . . 11 Level 2 11 | . . . . . . . . . . 16 . 97 30 . . . . . . . . . . 21 Level 3 15 | . . . . . . . . . . 10 100 . . . . . . . . . . . . 35 Level 4 2 | . . . . . . . . . . 5 . . . . . . . . . . . . . 4 Level 5 8 | . . . . . . . . . . 6 . . . . . . . . . . . . . 24 High Security . | . . . . . . . . . . . . . . . . . . . . . . . . . Max Security . | . . . . . . . . . . . . . . . . . . . . . . . . . Peak Influence 3247 | . 169 48 . 84 239 299 100 . 105 1678 1012 470 660 325 22 132 . . . . 56 52 143 3247 Initial 932 | . . 43 . . 2 87 100 . . 46 932 364 149 318 22 . . . . . . 17 18 74 Average 487 | . 87 14 . 22 77 101 22 . 17 522 960 440 331 83 8 30 . . . . 14 19 90 1172 Influence Increases 11769 | . 335 192 . 189 610 790 90 . 273 2783 246 292 681 130 . 341 60 . . 5 196 145 345 4066 Destroy 0b10 Robot/C 5040 | . 180 120 . 100 400 460 60 . 40 1240 100 80 220 . . 40 . . . . . . . 2000 Destroy 0b10 Robot/NC 485 | . 20 30 . 35 50 20 15 . 30 45 5 35 20 5 . 15 . . . 5 5 10 15 125 Destroy Leader 826 | . 42 20 . 20 90 104 . . 22 124 10 . 54 2 . 10 . . . . . . 6 322 Allied During Kill 1882 | . . . . . . 143 . . . 1215 115 115 294 . . . . . . . . . . . Successful Hack 354 | . 12 . . . 6 7 . . 36 13 . . . 45 . 15 . . . . 37 58 96 29 Select Force Hacks 110 | . 60 . . . . . . . . . . . 50 . . . . . . . . . . . Disable Machine 810 | . . . . . 15 45 15 . 30 15 15 60 15 . . 15 . . . . 45 . 90 450 Anti-Garrison Action 150 | . . . . . . . . . . . . . . . . . . . . . . . . 150 Destroy Structure 717 | . 6 7 . 19 19 11 . . 25 26 1 2 13 18 . 36 . . . . 34 32 48 420 Partial Spotted 300 | . . . . . . . . . 30 15 . . 15 60 . 75 . . . . 45 15 . 45 Lose Combat Pursuer 1095 | . 15 15 . 15 30 . . . 60 90 . . . . . 135 60 . . . 30 30 90 525 Influence Decreases 8522 | . 222 305 . 182 408 740 349 . 176 1213 1003 776 457 717 63 218 76 107 . 5 163 146 244 952 Entered New Map 2494 | . . 70 . . 5 122 159 . . 51 735 546 277 332 41 . 46 21 . . . 16 14 59 Time Decay 4134 | . 222 215 . 172 317 230 190 . 166 612 198 130 100 50 22 196 30 86 . 5 159 101 190 743 Lost Part 592 | . . 20 . 10 86 50 . . 10 210 10 . . . . 22 . . . . 4 . 20 150 Lost Ally 850 | . . . . . . 240 . . . 340 60 100 80 10 . . . . . . . . 20 . Purge Threat 452 | . . . . . . 98 . . . . . . . 325 . . . . . . . 29 . . Squads Dispatched 71 | . 4 . . 1 4 5 . . 11 7 1 . 5 2 . 8 . . . . 8 4 2 9 Investigation 39 | . 3 . . . . . . . 8 4 1 . 5 2 . 5 . . . . 6 3 . 2 Extermination 6 | . . . . . . . . . 2 . . . . . . 1 . . . . 1 . 2 . Reinforcement 17 | . 1 . . 1 3 . . . 1 2 . . . . . 2 . . . . 1 1 . 5 Assault 5 | . . . . . . 2 . . . 1 . . . . . . . . . . . . . 2 Garrison 4 | . . . . . 1 3 . . . . . . . . . . . . . . . . . . Intercept . | . . . . . . . . . . . . . . . . . . . . . . . . . Searches Triggered . | . . . . . . . . . . . . . . . . . . . . . . . . . Construction Impeded 1 | . . . . 1 . . . . . . . . . . . . . . . . . . . . Haulers Reinforced . | . . . . . . . . . . . . . . . . . . . . . . . . . Active Scanning Responses . | . . . . . . . . . . . . . . . . . . . . . . . . . Cargo Convoy Interrupts . | . . . . . . . . . . . . . . . . . . . . . . . . . Stealth | -11 -10 -10 -10 -9 -8 -8 -8 -8 -6 -6 -6 -6 -6 -5 -5 -5 -5 -5 -5 -4 -4 -3 -3 -3 --------- Run | Yrd Mat Min Exi Min Mat Sto Rec Scr Fac Ext Cet Arc Hub Fac Was Fac Upp Upp Zhi Pro Fac Res Qua Frg Distress Signals 28 | . . . . 1 1 2 . . 2 1 1 . 2 1 . . . . . . 1 . 1 15 Communications Jammed 48 | . . . . . . . . . . . . . . . . . . . . . . . . 48 Distress Signals 48 | . . . . . . . . . . . . . . . . . . . . . . . . 48 Times Spotted 468 | . 15 7 . 6 27 29 . . 9 65 5 16 16 4 . 13 5 . . . 11 6 14 220 Peak Tracking Total 22 | . 5 2 . 3 5 11 . . 5 9 5 2 6 2 . 8 5 . . . 6 3 5 22 Tactical Retreats 42 | . 1 1 . 1 1 . . . 2 4 . . . . . 5 1 . . . 2 1 4 19 Traps | -11 -10 -10 -10 -9 -8 -8 -8 -8 -6 -6 -6 -6 -6 -5 -5 -5 -5 -5 -5 -4 -4 -3 -3 -3 ------- Run | Yrd Mat Min Exi Min Mat Sto Rec Scr Fac Ext Cet Arc Hub Fac Was Fac Upp Upp Zhi Pro Fac Res Qua Frg Traps Triggered 23 | . 3 . . . . . . . . 5 . . . 1 . 2 . . . . . . . 12 Indirectly . | . . . . . . . . . . . . . . . . . . . . . . . . . Trap Hack Attempts . | . . . . . . . . . . . . . . . . . . . . . . . . . Triggered . | . . . . . . . . . . . . . . . . . . . . . . . . . Disarmed . | . . . . . . . . . . . . . . . . . . . . . . . . . Reprogrammed . | . . . . . . . . . . . . . . . . . . . . . . . . . Reused . | . . . . . . . . . . . . . . . . . . . . . . . . . Traps Extracted . | . . . . . . . . . . . . . . . . . . . . . . . . . Installed . | . . . . . . . . . . . . . . . . . . . . . . . . . Triggered . | . . . . . . . . . . . . . . . . . . . . . . . . . Machines | -11 -10 -10 -10 -9 -8 -8 -8 -8 -6 -6 -6 -6 -6 -5 -5 -5 -5 -5 -5 -4 -4 -3 -3 -3 ---------- Run | Yrd Mat Min Exi Min Mat Sto Rec Scr Fac Ext Cet Arc Hub Fac Was Fac Upp Upp Zhi Pro Fac Res Qua Frg Machines Disabled 65 | . . . . . 1 3 1 . 2 5 1 4 1 . . 1 . . . 1 3 . 6 36 Max in Single Turn 3 | . . . . . 1 1 1 . 1 1 1 1 . . . 1 . . . 1 1 . 3 2 Garrison Access 8 | . . . . . . . . . 1 . . . . . . 1 . . . . 2 2 1 1 Network Hub 2 | . . . . . . . . . . . . . 2 . . . . . . . . . . . Machines Repaired . | . . . . . . . . . . . . . . . . . . . . . . . . . Machines Dismantled . | . . . . . . . . . . . . . . . . . . . . . . . . . Machines Sabotaged 1 | . . . . . . . . . . . . . 1 . . . . . . . . . . . Overloaded Fab Kills . | . . . . . . . . . . . . . . . . . . . . . . . . . Hacking | -11 -10 -10 -10 -9 -8 -8 -8 -8 -6 -6 -6 -6 -6 -5 -5 -5 -5 -5 -5 -4 -4 -3 -3 -3 --------- Run | Yrd Mat Min Exi Min Mat Sto Rec Scr Fac Ext Cet Arc Hub Fac Was Fac Upp Upp Zhi Pro Fac Res Qua Frg Machines Accessed 116 | . 6 . 1 . 2 4 3 . 15 12 1 . 5 5 . 13 . 3 5 1 12 9 10 9 Terminals 60 | . 4 . . . 2 4 3 . 5 10 1 . 5 3 . 5 . . . . 3 3 7 5 Fabricators 3 | . . . . . . . . . . . . . . . . 1 . . . . 2 . . . Repair Stations 5 | . . . . . . . . . . 1 . . . . . 1 . . . . 1 1 1 . Recycling Units 27 | . 2 . . . . . . . 8 1 . . . 2 . 4 . . . . 4 3 . 3 Scanalyzers 4 | . . . . . . . . . 1 . . . . . . 1 . . . . . . 1 1 Garrison Access 7 | . . . . . . . . . 1 . . . . . . 1 . . . . 2 2 1 . Total Hacks 303 | . 11 . 1 . 2 7 7 . 24 28 2 . 9 30 . 45 . 5 18 1 29 18 42 24 Successful 200 | . 5 . 1 . 1 2 2 . 11 14 . . 8 15 . 31 . 5 18 1 24 14 29 19 Failed 102 | . 6 . . . 1 5 5 . 13 14 2 . 1 14 . 14 . . . . 5 4 13 5 Catastrophic 9 | . 1 . . . 1 2 . . 1 . 1 . . 1 . 1 . . . . 1 . . . Database Lockouts 1 | . . . . . . . . . . . . . . 1 . . . . . . . . . . Manual 134 | . 5 . . . 2 4 . . 12 6 1 . 8 25 . 25 . . . . 13 11 15 7 Terminals 202 | . 7 . . . 2 7 7 . 10 23 2 . 9 28 . 28 . . . . 15 10 36 18 Fabricators 9 | . . . . . . . . . . . . . . . . 4 . . . . 5 . . . Repair Stations 11 | . . . . . . . . . . 2 . . . . . 3 . . . . 2 2 2 . Recycling Units 36 | . 4 . . . . . . . 10 3 . . . 2 . 5 . . . . 4 3 . 5 Scanalyzers 7 | . . . . . . . . . 3 . . . . . . 2 . . . . . . 1 1 Garrison Access 13 | . . . . . . . . . 1 . . . . . . 3 . . . . 3 3 3 . Terminal Hacks 114 | . 3 . 1 . 1 2 2 . 2 9 . . 2 11 . 14 . 5 18 1 9 5 17 12 Record 20 | . . . 1 . . . . . . . . . . . . . . 3 6 1 1 . 2 6 Part Schematic 7 | . . . . . . . . . . . . . . 2 . . . . 4 . 1 . . . Robot Analysis 5 | . . . . . . . . . . . . . . . . . . . 4 . . . . 1 Prototype ID Bank 11 | . . . . . . . 2 . 1 . . . . . . 2 . . 4 . . . 2 . Open Door 12 | . . . . . . 1 . . 1 8 . . . . . . . 2 . . . . . . Level Access Points 3 | . . . . . . . . . . . . . 1 . . . . . . . 1 . 1 . Branch Access Points 3 | . 1 . . . . . . . . . . . . 1 . 1 . . . . . . . . Emergency Access Points 2 | . . . . . . . . . . . . . . . . . . . . . 1 . . 1 Machine Index 2 | . . . . . . . . . . . . . . . . 1 . . . . . . 1 . Terminal Index 1 | . . . . . . . . . . . . . . . . . . . . . . . 1 . Recycling Unit Index 2 | . . . . . . . . . . . . . . 1 . . . . . . 1 . . . Garrison Index 1 | . . . . . . . . . . . . . . . . . . . . . . . . 1 Alert Level 6 | . . . . . . . . . . . . . . 1 . 2 . . . . . 1 2 . Unreport Threat 7 | . . . . . . 1 . . . . . . . 3 . . . . . . 1 2 . . Locate Traps 5 | . . . . . . . . . . . . . . 1 . 1 . . . . . 1 1 1 Maintenance Status 6 | . . . . . . . . . . . . . . 1 . 1 . . . . 1 1 1 1 Security Status 1 | . . . . . . . . . . . . . . . . 1 . . . . . . . . Garrison Status 1 | . . . . . . . . . . . . . . . . 1 . . . . . . . . Recall Investigation 3 | . . . . . . . . . . 1 . . . . . 2 . . . . . . . . Recall Extermination 2 | . . . . . . . . . . . . . . . . . . . . . 1 . 1 . Hauler Manifests 2 | . . . . . 1 . . . . . . . . . . 1 . . . . . . . . Zone Layout 11 | . 2 . . . . . . . . . . . 1 1 . 1 . . . . 1 . 5 . Proto ID Catalog 1 | . . . . . . . . . . . . . . . . . . . . . . . . 1 Fabricator Hacks 8 | . . . . . . . . . . . . . . . . 4 . . . . 4 . . . Network Status 2 | . . . . . . . . . . . . . . . . 2 . . . . . . . . Load Schematic 3 | . . . . . . . . . . . . . . . . 1 . . . . 2 . . . Build 3 | . . . . . . . . . . . . . . . . 1 . . . . 2 . . . Repair Station Hacks 10 | . . . . . . . . . . 2 . . . . . 2 . . . . 2 2 2 . Scan Component 5 | . . . . . . . . . . 1 . . . . . 1 . . . . 1 1 1 . Repair 5 | . . . . . . . . . . 1 . . . . . 1 . . . . 1 1 1 . Recycling Unit Hacks 3 | . . . . . . . . . . 1 . . . . . . . . . . . . . 2 Retrieve Components 3 | . . . . . . . . . . 1 . . . . . . . . . . . . . 2 Scanalyzer 2 | . . . . . . . . . . . . . . . . 2 . . . . . . . . Insert Component 1 | . . . . . . . . . . . . . . . . 1 . . . . . . . . Analyze 1 | . . . . . . . . . . . . . . . . 1 . . . . . . . . Garrison Access Hacks 7 | . . . . . . . . . 1 . . . . . . 1 . . . . 2 2 1 . Seal Access 7 | . . . . . . . . . 1 . . . . . . 1 . . . . 2 2 1 . Unauthorized Hacks 56 | . 2 . . . . . . . 8 2 . . 6 4 . 8 . . . . 7 5 9 5 Terminals 29 | . . . . . . . . . 1 1 . . 6 2 . 4 . . . . 2 2 8 3 Track 2 | . . . . . . . . . . . . . . . . . . . . . 1 1 . . Assimilate 7 | . . . . . . . . . . . . . 1 1 . 1 . . . . . . 3 1 Botnet 9 | . . . . . . . . . . 1 . . . 1 . 1 . . . . 1 1 3 1 Operators 3 | . . . . . . . . . 1 . . . . . . . . . . . . . 1 1 Skim 3 | . . . . . . . . . . . . . . . . 2 . . . . . . 1 . Sabotage 5 | . . . . . . . . . . . . . 5 . . . . . . . . . . . Fabricators 1 | . . . . . . . . . . . . . . . . . . . . . 1 . . . Prioritize 1 | . . . . . . . . . . . . . . . . . . . . . 1 . . . Repair Stations . | . . . . . . . . . . . . . . . . . . . . . . . . . Recycling Units 24 | . 2 . . . . . . . 7 1 . . . 2 . 4 . . . . 4 3 . 1 Tunnel 2 | . 2 . . . . . . . . . . . . . . . . . . . . . . . Fedlink 22 | . . . . . . . . . 7 1 . . . 2 . 4 . . . . 4 3 . 1 Scanalyzers 2 | . . . . . . . . . . . . . . . . . . . . . . . 1 1 Researchers 2 | . . . . . . . . . . . . . . . . . . . . . . . 1 1 Garrison Access . | . . . . . . . . . . . . . . . . . . . . . . . . . Data Cores Recovered 2 | . . . . . . . . . . . . . 1 . . 1 . . . . . . . . Used 1 | . . . . . . . . . . . . . 1 . . . . . . . . . . . Hacking Detections 47 | . 4 . . . 1 4 2 . 7 4 1 . 1 3 . 7 . . . . 4 1 5 3 Full Trace Events 6 | . . . . . . . . . 1 1 1 . . . . 1 . . . . 2 . . . Feedback Events . | . . . . . . . . . . . . . . . . . . . . . . . . . Feedback Blocked . | . . . . . . . . . . . . . . . . . . . . . . . . . Robot Schematics Acquired 1 | . . . . . . . . . . . . . . . . . . . . . . . . 1 Robots Built . | . . . . . . . . . . . . . . . . . . . . . . . . . Authchips . | . . . . . . . . . . . . . . . . . . . . . . . . . Time . | . . . . . . . . . . . . . . . . . . . . . . . . . Total Robot Build Rating . | . . . . . . . . . . . . . . . . . . . . . . . . . Part Schematics Acquired 9 | . . . . . . . . . . . . . . 2 . 1 . . 4 . 1 . . 1 Parts Built 2 | . . . . . . . . . . . . . . . . 1 . . . . 1 . . . Authchips . | . . . . . . . . . . . . . . . . . . . . . . . . . Time 257 | . . . . . . . . . . . . . . . . 152 . . . . 105 . . . Total Part Build Rating 8 | . . . . . . . . . . . . . . . . 5 . . . . 3 . . . Parts Repaired 5 | . . . . . . . . . . 1 . . . . . 1 . . . . 1 1 1 . Time 272 | . . . . . . . . . . 50 . . . . . 108 . . . . 56 18 40 . Parts Recycled . | . . . . . . . . . . . . . . . . . . . . . . . . . Recycled Matter . | . . . . . . . . . . . . . . . . . . . . . . . . . Retrieved Matter . | . . . . . . . . . . . . . . . . . . . . . . . . . Retrieved Components 14 | . . . . . . . . . . 9 . . . . . . . . . . . . . 5 Parts Scanalyzed 1 | . . . . . . . . . . . . . . . . 1 . . . . . . . . Part Schematics Acquired 1 | . . . . . . . . . . . . . . . . 1 . . . . . . . . Parts Damaged . | . . . . . . . . . . . . . . . . . . . . . . . . . Bothacking | -11 -10 -10 -10 -9 -8 -8 -8 -8 -6 -6 -6 -6 -6 -5 -5 -5 -5 -5 -5 -4 -4 -3 -3 -3 ------------ Run | Yrd Mat Min Exi Min Mat Sto Rec Scr Fac Ext Cet Arc Hub Fac Was Fac Upp Upp Zhi Pro Fac Res Qua Frg Used RIF Installer . | . . . . . . . . . . . . . . . . . . . . . . . . . Robots Hacked 2 | . . . . . . . . 1 . 1 . . . . . . . . . . . . . . Non-combat 2 | . . . . . . . . 1 . 1 . . . . . . . . . . . . . . Combat . | . . . . . . . . . . . . . . . . . . . . . . . . . Robot Hacks Applied 3 | . . . . . . . . 2 . 1 . . . . . . . . . . . . . . parse_system 2 | . . . . . . . . 2 . . . . . . . . . . . . . . . . find_recycling 1 | . . . . . . . . . . 1 . . . . . . . . . . . . . . Relay Couplers Released 1 | . . . . . . . . . . . . . . . . . . . . . . . . 1 Machine Destruction 1 | . . . . . . . . . . . . . . . . . . . . . . . . 1 Fabnet Peak Effective % . | . . . . . . . . . . . . . . . . . . . . . . . . . Robots Rewired 33 | . . . . . . . . . . 33 . . . . . . . . . . . . . . Allies Hacked . | . . . . . . . . . . . . . . . . . . . . . . . . . Hacks Repelled . | . . . . . . . . . . . . . . . . . . . . . . . . . Allies | -11 -10 -10 -10 -9 -8 -8 -8 -8 -6 -6 -6 -6 -6 -5 -5 -5 -5 -5 -5 -4 -4 -3 -3 -3 -------- Run | Yrd Mat Min Exi Min Mat Sto Rec Scr Fac Ext Cet Arc Hub Fac Was Fac Upp Upp Zhi Pro Fac Res Qua Frg Total Allies 64 | . . . . . . 12 . . . 44 5 . . 1 . . . . . . . . 2 . Largest Group 24 | . . . . . . 12 . . . 23 24 23 17 1 . . . . . . . . 2 . Highest-Rated Group 1135 | . . . . . . 235 . . . 779 1135 1104 824 26 . . . . . . . . 71 . Highest-Rated Ally 159 | . . . . . . 31 . . . 159 152 143 96 26 . . . . . . . . 45 . Total Orders 12 | . . . . . . . . . . 11 . . 1 . . . . . . . . . . . STAY 5 | . . . . . . . . . . 4 . . 1 . . . . . . . . . . . FOLLOW 7 | . . . . . . . . . . 7 . . . . . . . . . . . . . . Ally Attacks 488 | . . . . . . 46 . . . 312 43 24 63 . . . . . . . . . . . Total Damage 9583 | . . . . . . 607 . . . 5989 852 490 1645 . . . . . . . . . . . Kills 74 | . . . . . . 5 . . . 48 5 2 14 . . . . . . . . . . . Allies Corrupted . | . . . . . . . . . . . . . . . . . . . . . . . . . Allies Melted 4 | . . . . . . . . . . . . . . . . . . . . . . . . 4 Intel | -11 -10 -10 -10 -9 -8 -8 -8 -8 -6 -6 -6 -6 -6 -5 -5 -5 -5 -5 -5 -4 -4 -3 -3 -3 ------- Run | Yrd Mat Min Exi Min Mat Sto Rec Scr Fac Ext Cet Arc Hub Fac Was Fac Upp Upp Zhi Pro Fac Res Qua Frg Active Infowar (turns) 9323 | . . . . . 805 397 . . 358 411 416 269 201 108 80 643 77 241 54 154 600 269 384 3856 Optics 7431 | . . . . . . . . . . 79 416 269 201 108 80 643 77 241 54 154 600 269 384 3856 Sensors 2979 | . . . . . 38 . . . 358 175 . . . . . 379 77 241 54 154 600 269 379 255 Terrain 668 | . . . . . 25 . . . 311 332 . . . . . . . . . . . . . . Structural 463 | . . . . . . . . . . . . . . . . . . . . . . . 364 99 Seismic 1164 | . . . . . 767 397 . . . . . . . . . . . . . . . . . . Cloaking 666 | . . . . . . . . . . . . . . . . . . . . . . . . 666 Jamming 730 | . . . . . . . . . . . . . . . . 28 . . . . . 78 367 257 Robot Analysis Total 5 | . . . . . . . . . . . . . . . . . . . 4 . . . . 1 Derelict Logs Recovered 6 | . . 1 . . . . . . . . . . . . . . 1 1 . 3 . . . . Drone Launches . | . . . . . . . . . . . . . . . . . . . . . . . . . Drone Recoveries . | . . . . . . . . . . . . . . . . . . . . . . . . . Exploration | -11 -10 -10 -10 -9 -8 -8 -8 -8 -6 -6 -6 -6 -6 -5 -5 -5 -5 -5 -5 -4 -4 -3 -3 -3 ------------- Run | Yrd Mat Min Exi Min Mat Sto Rec Scr Fac Ext Cet Arc Hub Fac Was Fac Upp Upp Zhi Pro Fac Res Qua Frg Turns Passed 16212 | 101 590 752 246 421 914 480 637 2203 503 2014 416 269 201 108 80 643 77 241 54 154 600 269 384 3855 Spaces Moved 17402 | 56 289 497 190 266 441 242 392 1490 1288 1108 193 205 304 326 319 1092 298 855 149 553 1235 505 952 4157 Core 11 | 4 . . . . . . . 7 . . . . . . . . . . . . . . . . Treads 1142 | 52 265 . . . . . . . . 592 193 40 . . . . . . . . . . . . Legs 1548 | . . . . . . . . . . . . . . . . . . . . . . . . 1548 Wheels 3477 | . 24 497 190 266 441 242 392 1374 . 51 . . . . . . . . . . . . . . Hover 1952 | . . . . . . . . . . . . . . . . . . . . . . . . 1952 Flight 9272 | . . . . . . . . 109 1288 465 . 165 304 326 319 1092 298 855 149 553 1235 505 952 657 Fastest Speed 11 | 50 130 130 130 130 130 135 155 29 26 27 160 26 26 23 23 23 24 24 24 24 20 20 21 11 Average Speed 65 | 152 157 130 130 130 133 140 155 145 26 107 165 54 26 23 23 24 24 24 24 24 20 20 25 57 Slowest Speed 320 | 160 175 130 130 130 215 245 155 155 29 240 320 160 26 23 23 98 24 24 24 24 20 92 100 276 Overloaded Moves 64 | . . . . . . . . . . . . . . . . . . . . . . . 13 51 Propulsion Burnouts . | . . . . . . . . . . . . . . . . . . . . . . . . . Robots Hopped 77 | . . . . . . . . . . 10 . . 16 2 . 5 . 4 . . 5 15 14 6 Potential Cave-ins 8 | . . . . . . . . . . . . . . . . . . . . . . . . 8 Cave-ins Triggered 1 | . . . . . . . . . . . . . . . . . . . . . 1 . . . Teleports 2 | . . . . . . . . . . . . . . . . . . . . . . . . 2 Exploration Rate (%) 58 | 5 63 99 62 38 31 43 65 85 35 85 77 85 33 15 94 34 67 83 61 76 35 16 92 84 Regions Visited 24 Branch Regions 16 Pre-discovered Areas 10 | . 2 1 1 . . . . . 1 . . . . . . . . 1 3 1 . . . . Known Exits Taken 12 | . 1 . . . 1 . . . 1 . . . 1 . . 1 1 1 1 1 1 1 1 . Unknown Exits Taken 10 | 1 . 1 1 1 . 1 1 1 . 1 1 1 . . . . . . . . . . . . Scrap Searched 17 | . . 1 . 1 . . . 9 . . . . . . . . . 2 . 4 . . . . Spaces Dug 151 | . . . . . 1 . . . 25 3 . . 7 9 . 18 2 11 . 5 17 16 12 25 Terrain Destroyed 561 | . 6 7 . 19 16 8 . . 25 10 . 1 7 9 . 18 2 11 . 5 17 16 24 360 Melee 126 | . . . . . 1 . . . 25 3 . . 7 9 . 18 2 11 . 5 17 16 12 . Projectile 196 | . . . . . . . . . . 7 . 1 . . . . . . . . . . 12 176 AOE 226 | . 6 7 . 19 15 8 . . . . . . . . . . . . . . . . . 171 Terrain Rammed . | . . . . . . . . . . . . . . . . . . . . . . . . . Walls Destroyed . | . . . . . . . . . . . . . . . . . . . . . . . . . Machines Disabled . | . . . . . . . . . . . . . . . . . . . . . . . . . Actions | -11 -10 -10 -10 -9 -8 -8 -8 -8 -6 -6 -6 -6 -6 -5 -5 -5 -5 -5 -5 -4 -4 -3 -3 -3 --------- Run | Yrd Mat Min Exi Min Mat Sto Rec Scr Fac Ext Cet Arc Hub Fac Was Fac Upp Upp Zhi Pro Fac Res Qua Frg Total 20839 | 68 353 549 189 298 647 321 405 1528 1369 1723 270 326 396 343 324 1414 299 865 166 563 1550 627 1047 5199 Wait 1621 | . 7 4 . . 58 7 1 1 21 288 60 60 99 3 . 258 . . . . 282 110 48 314 Move 17247 | 56 288 496 189 265 440 241 391 1489 1287 1090 192 204 279 322 318 1081 297 847 148 552 1224 480 927 4144 Hop 55 | . . . . . . . . . . 7 . . 9 2 . 5 . 3 . . 5 9 10 5 Pick Up 200 | 4 6 12 . 6 29 8 4 12 6 6 . 1 . 2 . 7 . 1 3 2 2 2 6 81 Fast Attach 207 | 6 6 1 . . 9 4 . 8 8 46 5 10 . . 2 12 . . 6 . 5 1 8 70 Attach 81 | . . 3 . 1 11 6 . . 1 3 . 6 . 1 . 5 . . . 1 1 4 3 35 Detach 79 | . 2 . . . 5 1 . . 1 8 1 10 . . 1 5 . . . . . 2 4 39 Swap 128 | 1 4 1 . 3 11 5 . 3 . 9 . 1 . 1 2 5 . . 1 . 4 1 4 72 Drop 247 | 1 2 3 . . 19 13 . 13 7 25 3 11 . 2 1 6 . . 8 1 5 . 13 114 Fire 511 | . 38 29 . 23 64 36 9 2 . 69 9 9 . . . . . . . . . . 1 222 Melee 261 | . . . . . 1 . . . 38 70 . 14 9 10 . 30 2 14 . 7 22 18 23 3 Ram 1 | . . . . . . . . . . 1 . . . . . . . . . . . . . . Kick . | . . . . . . . . . . . . . . . . . . . . . . . . . Crush 1 | . . . . . . . . . . 1 . . . . . . . . . . . . . . Escape Stasis 90 | . . . . . . . . . . 50 . . . . . . . . . . . . . 40 Rewire 50 | . . . . . . . . . . 50 . . . . . . . . . . . . . . Trap . | . . . . . . . . . . . . . . . . . . . . . . . . . Miscellaneous 60 | . . . . . . . . . . . . . . . . . . . . . . . . 60 Route ------- -11/Scrapyard -10/Materials (discovered 2 exits: [*Mat] / *Min) -10/Mines (discovered 4 exits: [*Mat x2] / *Exi / [*Sub]) -10/Exiles -9/Mines -8/Materials (discovered 2 exits: [*Fac] / *Sto) -8/Storage -8/Recycling (discovered 2 exits: *Fac / *Scr) -8/Scraptown (discovered 2 exits: *Fac x2) -6/Factory (discovered 3 exits: *Fac x2 / *Ext) -6/Extension (discovered 2 exits: *Fac / *Cet) -6/Cetus -6/Archives (discovered 2 exits: *Hub x2) -6/Hub_04(d) (discovered 4 exits: *Fac x4) -5/Factory (discovered 2 exits: Upp x2) -5/Waste -5/Factory (discovered 3 exits: *Fac / *Upp x2) -5/Upper Caves -5/Upper Caves -5/Zhirov -4/Proximity Caves -4/Factory (discovered 5 exits: *Res x4 / *Upp) -3/Research -3/Quarantine (discovered 3 exits: *Res / *Sec / *Frg) -3/Protoforge 0bPrime History --------- Turn | Location | Event 5 | -11/Scrapyard | Discovered new exit (range 15) 102 | -11/Scrapyard | Entered Materials 311 | -10/Materials | Build established: Mutant 487 | -10/Materials | Discovered new exit (range 15) 514 | -10/Materials | Identified exit to Mines 602 | -10/Materials | Derelicts attacked the area 692 | -10/Materials | Entered Mines 713 | -10/Mines | Discovered new exit (range 15) 841 | -10/Mines | Found a hidden stash of uninstalled traps 950 | -10/Mines | Discovered new exit (range 3) 1000 | -10/Mines | Deemed a non-threat by the Exiles lab entrance 1001 | -10/Mines | Discovered new exit (range 5) 1295 | -10/Mines | Found a Scrap Suit stashed away for nefarious purposes 1327 | -10/Mines | Learned location of Storage (-8) 1383 | -10/Mines | Discovered new exit (range 6) 1444 | -10/Mines | Entered Exiles 1476 | -10/Exiles | Met 8R-AWN 1498 | -10/Exiles | Met EX-HEX 1539 | -10/Exiles | Met EX-BIN 1580 | -10/Exiles | Met EX-DEC 1587 | -10/Exiles | Learned location of Zion (-6) 1678 | -10/Exiles | Discovered new exit (range 11) 1690 | -10/Exiles | Entered Mines 1697 | -9/Mines | Received a Rocket Launcher from a helpful Derelict 1825 | -9/Mines | Core integrity fell below 50% 1860 | -9/Mines | Discovered new exit (range 10) 2111 | -9/Mines | Entered Materials 2111 | -8/Materials | Evolved 4 slots: Propulsion x1, Utility x2, Weapon x1 2112 | -8/Materials | Identified exit to Storage 2283 | -8/Materials | Garrison activated, responded to threat 2604 | -8/Materials | Discovered new exit (range 7) 2624 | -8/Materials | Lost 3 parts (3w) 2853 | -8/Materials | Core integrity fell below 50% 2882 | -8/Materials | Lost 3 parts (1p1u1w) 3025 | -8/Materials | Entered Storage 3027 | -8/Storage | Build established: Scavenger-Gunner 3293 | -8/Storage | Garrison activated, responded to threat 3325 | -8/Storage | Assisted by bots powering up and referring to "LRC-V3" 3363 | -8/Storage | Met a pair of Derelict thieves 3399 | -8/Storage | Garrison activated, responded to threat 3430 | -8/Storage | Core integrity fell below 20% 3450 | -8/Storage | Lost 12 allies 3457 | -8/Storage | Lost 5 parts (1p2n1u1w) 3461 | -8/Storage | Destroyed 12 combat bots 3497 | -8/Storage | Used back door to open Recycling access 3497 | -8/Storage | Discovered new exit (range 5) 3505 | -8/Storage | Entered Recycling 3705 | -8/Recycling | Build established: Tank 3795 | -8/Recycling | Discovered new exit (range 16) 3995 | -8/Recycling | Scanned before Scraplab entrance 4127 | -8/Recycling | Entered Scraplab 4139 | -8/Recycling | Discovered new exit (range 2) 4142 | -8/Recycling | Entered Scraptown 4834 | -8/Scraptown | Visited Cyclists 4894 | -8/Scraptown | Visited Assassins FH 4913 | -8/Scraptown | Visited Fellowship of the Rings 5079 | -8/Scraptown | Discovered new exit (range 11) 5266 | -8/Scraptown | Visited Cave Peace 5317 | -8/Scraptown | Visited Bundlers 5435 | -8/Scraptown | Visited UFD Registry 5435 | -8/Scraptown | Registered with UFD as "Kinetibrain" 5474 | -8/Scraptown | Visited Research Penetration Think Tank 5508 | -8/Scraptown | Visited Science Testing Area 5530 | -8/Scraptown | Visited A0-MCA Data Center 5889 | -8/Scraptown | Given an A- rating by A0-MCA 5896 | -8/Scraptown | Found A0-MCA's Component Scanner 6111 | -8/Scraptown | Visited Scrapoid Pod Storage 6146 | -8/Scraptown | Visited Botcube Research 6183 | -8/Scraptown | Visited Chapter 10 6208 | -8/Scraptown | Visited Modified Component R&D 6286 | -8/Scraptown | Released all parts (11) 6329 | -8/Scraptown | Met Optimus 6329 | -8/Scraptown | Accepted into 0bPrime 6344 | -8/Scraptown | Discovered new exit (range 3) 6345 | -8/Scraptown | Entered Factory 6345 | -6/Factory | Evolved 4 slots: Propulsion x1, Utility x3 6384 | -6/Factory | Spotted B-75 Beast 6430 | -6/Factory | Loaded intel: 8 recycling unit locations 6445 | -6/Factory | Learned location of Protoforge (-3) 6481 | -6/Factory | Discovered new exit (range 4) 6500 | -6/Factory | Identified exit to Factory 6529 | -6/Factory | Discovered exit to Factory (range 11) 6847 | -6/Factory | Discovered new exit (range 6) 6848 | -6/Factory | Identified exit to Extension 6848 | -6/Factory | Entered Extension 6968 | -6/Extension | Rescued a captive Derelict 6970 | -6/Extension | Rescued a captive Derelict 7060 | -6/Extension | Lost 3 allies 7227 | -6/Extension | Lost 3 allies 7553 | -6/Extension | Build established: Commander-Mutant 7729 | -6/Extension | Spotted B-75 Beast 7742 | -6/Extension | Allies destroyed B-75 Beast 7788 | -6/Extension | Spotted B-75 Beast 7808 | -6/Extension | Allies destroyed B-75 Beast 7837 | -6/Extension | Lost 4 allies 7843 | -6/Extension | Lost 3 parts (1p1n1u) 7889 | -6/Extension | Rescued a captive Derelict 7934 | -6/Extension | Loaded intel: 2 recycling unit locations 8000 | -6/Extension | Repaired Bore Cannon 8055 | -6/Extension | Rescued a captive Derelict 8057 | -6/Extension | Rescued a captive Derelict 8084 | -6/Extension | Rescued A7 8263 | -6/Extension | Rescued a captive Derelict 8300 | -6/Extension | Build established: Scavenger-Tank 8325 | -6/Extension | Rescued a captive Derelict 8349 | -6/Extension | Rescued a captive Derelict 8356 | -6/Extension | Rescued a captive Derelict 8357 | -6/Extension | Rescued a captive Derelict 8423 | -6/Extension | Disrupted transfer network 8456 | -6/Extension | Lost 10 parts (1p3n2u4w) 8598 | -6/Extension | First assault squad dispatched 8661 | -6/Extension | System corruption reached 10% 8678 | -6/Extension | Core integrity fell below 50% 8711 | -6/Extension | Lost 6 parts (2n3u1w) 8770 | -6/Extension | Discovered exit to Factory (range 10) 8772 | -6/Extension | Discovered new exit (range 6) 8862 | -6/Extension | Entered Cetus 8862 | -6/Cetus | Accompanied by 22 allies (A7) 8867 | -6/Cetus | Acquired a Cetus Manufacturing Module code from A7 8880 | -6/Cetus | Spotted Cetus Guard 8880 | -6/Cetus | Spotted Cetus Guard 8883 | -6/Cetus | Spotted Cetus Guard 8885 | -6/Cetus | Spotted Cetus Guard 8889 | -6/Cetus | Allies destroyed Cetus Guard 8907 | -6/Cetus | Allies destroyed Cetus Guard 8908 | -6/Cetus | Allies destroyed Cetus Guard 8912 | -6/Cetus | Destroyed Cetus Guard 8937 | -6/Cetus | Lost 3 allies 9070 | -6/Cetus | Started Cetus Manufacturing Module 9095 | -6/Cetus | Manufactured an Enhanced Grunt 9114 | -6/Cetus | System corruption reached 30% 9120 | -6/Cetus | Manufactured an Enhanced Grunt 9145 | -6/Cetus | Manufactured an Enhanced Grunt 9169 | -6/Cetus | Escorted A7 to Cetus Mainframe 9170 | -6/Cetus | Manufactured an Enhanced Grunt 9181 | -6/Cetus | Discovered new exit (range 21) 9195 | -6/Cetus | Manufactured an Enhanced Grunt 9229 | -6/Cetus | Build established: Commander-Tank 9278 | -6/Cetus | Entered Archives 9278 | -6/Archives | Accompanied by 23 allies (A7) 9284 | -6/Archives | Received a hacking code to weaken MAIN.C 9322 | -6/Archives | Discovered new exit (range 22) 9340 | -6/Archives | Discovered new exit (range 22) 9356 | -6/Archives | Lost 5 allies 9547 | -6/Archives | Entered Hub_04(d) 9547 | -6/Hub_04(d) | Accompanied by 17 allies 9737 | -6/Hub_04(d) | Network Hub disabled 9737 | -6/Hub_04(d) | Network Hub disabled 9748 | -6/Hub_04(d) | Entered Factory 9748 | -5/Factory | Evolved 2 slots: Propulsion x1, Utility x1 9762 | -5/Factory | Identified exit to Upper Caves 9787 | -5/Factory | Central database locked down 9843 | -5/Factory | Spotted B-75 Beast 9844 | -5/Factory | Loaded intel: 8 recycling unit locations 9856 | -5/Factory | Sucked down chute 9856 | -5/Factory | Entered Waste 9856 | -5/Waste | The area was eerily silent 9896 | -5/Waste | Discovered new exit (range 21) 9936 | -5/Waste | Entered Factory 9960 | -5/Factory | Build established: Wizard-Sprinter 10137 | -5/Factory | Fabricated Exp. Propulsion Shielding (x1) 10355 | -5/Factory | Repaired Centrium Medium Armor Plating 10387 | -5/Factory | Loaded intel: 8 recycling unit locations 10417 | -5/Factory | Spotted B-75 Beast 10487 | -5/Factory | Lost 3 parts (1p1n1u) 10498 | -5/Factory | Discovered new exit (range 4) 10499 | -5/Factory | Identified exit to Factory 10579 | -5/Factory | Entered Upper Caves 10580 | -5/Upper Caves | Spotted B-75 Beast 10626 | -5/Upper Caves | Discovered new exit (range 21) 10629 | -5/Upper Caves | Learned Factory trap positions 10654 | -5/Upper Caves | Identified exit to Upper Caves 10656 | -5/Upper Caves | Entered another Upper Caves area 10659 | -5/Upper Caves | Entered an active Warlord outpost 10661 | -5/Upper Caves | Learned location of 1 exit from Research 10661 | -5/Upper Caves | Learned Extension emergency access door positions 10727 | -5/Upper Caves | Build established: Hacker-Scout 10836 | -5/Upper Caves | Encountered a Warlord checkpoint 10877 | -5/Upper Caves | Discovered new exit (range 18) 10884 | -5/Upper Caves | Learned 8 Factory zone layouts 10897 | -5/Upper Caves | Identified exit to Zhirov 10897 | -5/Upper Caves | Entered Zhirov 10897 | -5/Zhirov | Discovered new exit (range 3) 10902 | -5/Zhirov | Met Zhirov 10907 | -5/Zhirov | Learned location of Quarantine (-3) 10907 | -5/Zhirov | Learned location of Testing (-2) 10910 | -5/Zhirov | Zhirov requested help retrieving the SGEMP Prototype 10914 | -5/Zhirov | Found Alien Artifact 10914 | -5/Zhirov | Identified Integrated Reactor 10914 | -5/Zhirov | Installed Integrated Reactor, increased core energy generation (+10) 10921 | -5/Zhirov | Found Alien Artifact 10950 | -5/Zhirov | Identified exit to Proximity Caves 10951 | -5/Zhirov | Entered Proximity Caves 10951 | -4/Proximity Caves | Learned Research stockpile data 10984 | -4/Proximity Caves | Spotted B-86 Titan 11031 | -4/Proximity Caves | Found Alien Artifact 11055 | -4/Proximity Caves | Learned Research stockpile data 11085 | -4/Proximity Caves | Discovered exit to Factory (range 16) 11105 | -4/Proximity Caves | Entered Factory 11105 | -4/Factory | Evolved 2 slots: Power x1, Propulsion x1 11106 | -4/Factory | Identified exit to Research 11106 | -4/Factory | Identified exit to Upper Caves 11107 | -4/Factory | Loaded intel: 77 trap records 11161 | -4/Factory | Fabricated Imp. VTOL Module (x1) 11268 | -4/Factory | Repaired Field Propulsion Drive 11352 | -4/Factory | Spotted B-86 Titan 11368 | -4/Factory | Spotted B-86 Titan 11390 | -4/Factory | Loaded intel: 8 recycling unit locations 11584 | -4/Factory | Crushed by falling debris 11705 | -4/Factory | Entered Research 11705 | -3/Research | Evolved 2 slots: Utility x2 11706 | -3/Research | Identified exit to Quarantine 11717 | -3/Research | Loaded intel: 5 recycling unit locations 11876 | -3/Research | Repaired Phasing Sabre 11974 | -3/Research | Entered Quarantine 12014 | -3/Quarantine | Found Alien Artifact 12045 | -3/Quarantine | Found Alien Energy Cannon 12053 | -3/Quarantine | Found Unknown Protection 12053 | -3/Quarantine | Identified Adv. Powered Armor 12074 | -3/Quarantine | Identified exit to Research 12082 | -3/Quarantine | Found Alien Artifact 12083 | -3/Quarantine | Identified Subatomic Replicator 12083 | -3/Quarantine | Used Subatomic Replicator to create Alien Artifact 12097 | -3/Quarantine | Spotted Alpha 7 12185 | -3/Quarantine | Repaired Exp. Propulsion Shielding 12207 | -3/Quarantine | Build established: Hacker-Ninja 12272 | -3/Quarantine | Identified Core Cannon 12332 | -3/Quarantine | Spotted Fortress 12356 | -3/Quarantine | Discovered new exit (range 5) 12356 | -3/Quarantine | Discovered new exit (range 6) 12357 | -3/Quarantine | Identified exit to Section 7 12357 | -3/Quarantine | Identified exit to Protoforge 12358 | -3/Quarantine | Entered Protoforge 12416 | -3/Protoforge | Superfortress began startup sequence 12446 | -3/Protoforge | Additional patrols dispatched to research labs 12459 | -3/Protoforge | Found Cep. Antimissile System 12474 | -3/Protoforge | Spotted B-86 Titan 12494 | -3/Protoforge | Spotted Overlord 12496 | -3/Protoforge | Spotted AP7-3 12496 | -3/Protoforge | Spotted AP7-3 12507 | -3/Protoforge | Spotted EXE-6 12507 | -3/Protoforge | Spotted EXE-6 12517 | -3/Protoforge | UFD initiated attack on Protoforge 12517 | -3/Protoforge | Loaded intel: 3 recycling unit locations 12526 | -3/Protoforge | Found Prototype Device 12526 | -3/Protoforge | Identified Exp. EM Disruption Field 12548 | -3/Protoforge | Found Exp. Armor Integrity Analyzer 12551 | -3/Protoforge | Found Exp. Core Analyzer 12553 | -3/Protoforge | Optimus greeted in Protoforge 12555 | -3/Protoforge | Found Exp. Core Analyzer 12574 | -3/Protoforge | Identified Dimensional Node Initializer 12574 | -3/Protoforge | Initialized slip node 12592 | -3/Protoforge | Found Exp. Terror Saw 12595 | -3/Protoforge | Found Cep. Chromion Battery 12598 | -3/Protoforge | Identified Supercharged TR 12598 | -3/Protoforge | Warped through subspace to slip node 12599 | -3/Protoforge | Optimus attacked Superfortress 12599 | -3/Protoforge | Lost 7 allies 12599 | -3/Protoforge | Spotted Decapitator 12601 | -3/Protoforge | Found Cep. XC Strikerail 12603 | -3/Protoforge | Found Cep. XC Strikerail 12613 | -3/Protoforge | Spotted Hotshot 12613 | -3/Protoforge | Spotted Immortal 12614 | -3/Protoforge | Spotted Striker 12633 | -3/Protoforge | Found Cep. XC Strikerail 12648 | -3/Protoforge | Met 7R-MNS 12656 | -3/Protoforge | Found Exp. Core Analyzer 12660 | -3/Protoforge | Found Exp. Kinecellerator 12661 | -3/Protoforge | Lost 9 allies 12692 | -3/Protoforge | Found Cep. Matter Streamer 12696 | -3/Protoforge | Found Cep. NT7 Matterbank 12733 | -3/Protoforge | Forge Plexus network access discovered 12743 | -3/Protoforge | UFD reported confirmed Drillbomb installation 12820 | -3/Protoforge | Build established: Scavenger-Gunner 12839 | -3/Protoforge | Spotted Executioner 12845 | -3/Protoforge | Spotted Striker 12852 | -3/Protoforge | Destroyed Executioner 12858 | -3/Protoforge | Destroyed Striker 12866 | -3/Protoforge | Spotted Executioner 12870 | -3/Protoforge | Spotted Executioner 12873 | -3/Protoforge | Destroyed Executioner 12883 | -3/Protoforge | Destroyed Executioner 12892 | -3/Protoforge | UFD reported confirmed Drillbomb installation 12924 | -3/Protoforge | Found Exp. Core Analyzer 12926 | -3/Protoforge | UFD reported confirmed Drillbomb installation 12934 | -3/Protoforge | Spotted Executioner 12937 | -3/Protoforge | Destroyed Executioner 12938 | -3/Protoforge | Spotted Executioner 12946 | -3/Protoforge | Spotted Executioner 12948 | -3/Protoforge | Spotted Executioner 12950 | -3/Protoforge | Destroyed Executioner 12957 | -3/Protoforge | Destroyed Executioner 12966 | -3/Protoforge | Destroyed Executioner 12994 | -3/Protoforge | Destroyed 23 combat bots 13024 | -3/Protoforge | Spotted Executioner 13024 | -3/Protoforge | Spotted Striker 13029 | -3/Protoforge | Destroyed Executioner 13042 | -3/Protoforge | Destroyed Striker 13212 | -3/Protoforge | Spotted V752-x 13212 | -3/Protoforge | Spotted V964-v 13234 | -3/Protoforge | Found Cep. Matter Streamer 13236 | -3/Protoforge | Found Cep. Antigrav Storage Unit 13282 | -3/Protoforge | Spotted Decapitator 13282 | -3/Protoforge | Spotted Decapitator 13282 | -3/Protoforge | Spotted Decapitator 13352 | -3/Protoforge | Spotted Immortal 13382 | -3/Protoforge | Destroyed Immortal 13392 | -3/Protoforge | Found Exp. Cloaking Device 13397 | -3/Protoforge | Found Exp. Jetlance 13399 | -3/Protoforge | Found Exp. Melee Analysis Suite 13404 | -3/Protoforge | Spotted V705-w 13420 | -3/Protoforge | Found Faulty Cep. Biometal Exoskeleton 13424 | -3/Protoforge | Found Cep. Biometal Exoskeleton 13437 | -3/Protoforge | Found Cep. Gyrokinetic System 13534 | -3/Protoforge | Found Cep. Helical Railcannon 13537 | -3/Protoforge | Found Cep. Helical Railcannon 13551 | -3/Protoforge | Found Cep. Variable Chargecaster 13554 | -3/Protoforge | Found Cep. Heavy Railcannon 13573 | -3/Protoforge | Found Faulty Cep. Plasma Driver 13578 | -3/Protoforge | Found Cep. Plasma Driver 13581 | -3/Protoforge | Found Cep. Lightning Penetrator 13586 | -3/Protoforge | Found Exp. Jetlance 13602 | -3/Protoforge | Found Cep. XC Strikerail 13605 | -3/Protoforge | Found Cep. Deflector Sword 13611 | -3/Protoforge | Found Cep. Miniperforator 13631 | -3/Protoforge | Build established: Scavenger-Tank 13726 | -3/Protoforge | Found Transdimensional Reconstructor 13734 | -3/Protoforge | Found Cep. Navigation Harness 13748 | -3/Protoforge | Found Cep. Nanofilaments [Polyglass] 13931 | -3/Protoforge | Spotted Hotshot 13931 | -3/Protoforge | Spotted Hotshot 13932 | -3/Protoforge | Destroyed Hotshot 13939 | -3/Protoforge | Destroyed Hotshot 13992 | -3/Protoforge | Found Crosscalibrator 13995 | -3/Protoforge | Spotted Immortal 14044 | -3/Protoforge | Destroyed Immortal 14074 | -3/Protoforge | Spotted Decapitator 14074 | -3/Protoforge | Spotted Decapitator 14074 | -3/Protoforge | Spotted Decapitator 14074 | -3/Protoforge | Spotted Decapitator 14108 | -3/Protoforge | Found Cep. Tiamat Rocket Array 14148 | -3/Protoforge | Destroyed Decapitator 14148 | -3/Protoforge | Destroyed Decapitator 14148 | -3/Protoforge | Destroyed Decapitator 14151 | -3/Protoforge | Destroyed Decapitator 14198 | -3/Protoforge | Found Exp. Kinecellerator 14203 | -3/Protoforge | Found Cep. Recoil Nullifier 14208 | -3/Protoforge | Found Cep. Weapon Articulator 14215 | -3/Protoforge | Found Cep. Networked Targeting System 14272 | -3/Protoforge | Found Cep. Core Shell 14275 | -3/Protoforge | Found Cep. RG22 Armor 14289 | -3/Protoforge | Found Cep. Projectile Intercept Suite 14291 | -3/Protoforge | Found Faulty Cep. Reaction Jets 14313 | -3/Protoforge | Found Faulty Cep. Reaction Jets 14414 | -3/Protoforge | Found Cep. RG22 Armor 14416 | -3/Protoforge | Found Cep. Core Shell 14503 | -3/Protoforge | Spotted Decapitator 14503 | -3/Protoforge | Spotted Decapitator 14503 | -3/Protoforge | Spotted V795-w 14592 | -3/Protoforge | Build established: Scavenger-Gunner 14710 | -3/Protoforge | Destroyed V705-w 14719 | -3/Protoforge | Found Cep. Combat Aerolev Unit 14721 | -3/Protoforge | Found Cep. Combat Aerolev Unit 14760 | -3/Protoforge | Found Cep. Combat Aerolev Unit 14767 | -3/Protoforge | Found Cep. RG22 Armor 14788 | -3/Protoforge | Found Cep. Gyrokinetic System 14798 | -3/Protoforge | Found Cep. Combat Aerolev Unit 14849 | -3/Protoforge | Found Faulty Cep. Combat Aerolev Unit 14905 | -3/Protoforge | Found Cep. RG22 Armor 14931 | -3/Protoforge | Found Exp. Armor Integrity Analyzer 14944 | -3/Protoforge | UFD reported confirmed Drillbomb installation 14948 | -3/Protoforge | Spotted AP7-3 14952 | -3/Protoforge | Spotted AP7-3 14999 | -3/Protoforge | System corruption reached 10% 15004 | -3/Protoforge | Spotted Executioner 15036 | -3/Protoforge | Found UFD Drillbomb 15059 | -3/Protoforge | Spotted Executioner 15060 | -3/Protoforge | Spotted Executioner 15065 | -3/Protoforge | Destroyed Executioner 15066 | -3/Protoforge | Spotted Striker 15092 | -3/Protoforge | Destroyed Executioner 15107 | -3/Protoforge | Spotted Striker 15113 | -3/Protoforge | Destroyed 14 combat bots 15174 | -3/Protoforge | Spotted Hotshot 15177 | -3/Protoforge | Installed UFD Drillbomb at designated target 15177 | -3/Protoforge | UFD reported confirmed Drillbomb installation 15184 | -3/Protoforge | Spotted Hotshot 15191 | -3/Protoforge | Destroyed Hotshot 15198 | -3/Protoforge | Spotted Hotshot 15200 | -3/Protoforge | Destroyed Hotshot 15204 | -3/Protoforge | Spotted Hotshot 15245 | -3/Protoforge | Spotted Executioner 15245 | -3/Protoforge | Spotted Executioner 15246 | -3/Protoforge | Core integrity fell below 50% 15249 | -3/Protoforge | Destroyed Executioner 15258 | -3/Protoforge | Destroyed Executioner 15269 | -3/Protoforge | Found UFD Drillbomb 15307 | -3/Protoforge | Spotted Executioner 15307 | -3/Protoforge | Spotted Executioner 15310 | -3/Protoforge | Spotted Striker 15330 | -3/Protoforge | Spotted Executioner 15349 | -3/Protoforge | Destroyed Executioner 15349 | -3/Protoforge | Destroyed Executioner 15349 | -3/Protoforge | Destroyed Executioner 15352 | -3/Protoforge | Destroyed Hotshot 15369 | -3/Protoforge | Spotted Executioner 15378 | -3/Protoforge | Destroyed 13 combat bots 15379 | -3/Protoforge | Spotted Striker 15389 | -3/Protoforge | Spotted Striker 15403 | -3/Protoforge | Spotted Decapitator 15420 | -3/Protoforge | Discovered exit to Research (range 6) 15423 | -3/Protoforge | Spotted Decapitator 15431 | -3/Protoforge | Destroyed Decapitator 15451 | -3/Protoforge | Installed UFD Drillbomb at designated target 15451 | -3/Protoforge | UFD reported confirmed Drillbomb installation 15467 | -3/Protoforge | Spotted Executioner 15467 | -3/Protoforge | Spotted Executioner 15467 | -3/Protoforge | Spotted Executioner 15467 | -3/Protoforge | Spotted Striker 15480 | -3/Protoforge | Spotted Executioner 15480 | -3/Protoforge | Warped through subspace 15499 | -3/Protoforge | Found UFD Drillbomb 15534 | -3/Protoforge | Destroyed 8 combat bots 15661 | -3/Protoforge | Installed UFD Drillbomb at designated target 15661 | -3/Protoforge | UFD reported confirmed Drillbomb installation 15663 | -3/Protoforge | Found UFD Drillbomb 15681 | -3/Protoforge | Installed UFD Drillbomb at designated target 15681 | -3/Protoforge | UFD reported confirmed Drillbomb installation 15718 | -3/Protoforge | Found UFD Drillbomb 15755 | -3/Protoforge | Spotted Striker 15755 | -3/Protoforge | Spotted Executioner 15795 | -3/Protoforge | Destroyed Striker 15821 | -3/Protoforge | Destroyed Executioner 15875 | -3/Protoforge | Build established: Scavenger-Mutant 15883 | -3/Protoforge | Spotted Striker 15893 | -3/Protoforge | Spotted Striker 15910 | -3/Protoforge | Destroyed Striker 15914 | -3/Protoforge | Destroyed Striker 15962 | -3/Protoforge | Spotted Hotshot 15962 | -3/Protoforge | Spotted Hotshot 15991 | -3/Protoforge | Installed UFD Drillbomb at designated target 15991 | -3/Protoforge | UFD reported confirmed Drillbomb installation 16034 | -3/Protoforge | Lost 5 parts (2p2u1w) 16034 | -3/Protoforge | Found UFD Drillbomb 16113 | -3/Protoforge | Installed UFD Drillbomb at designated target 16113 | -3/Protoforge | UFD reported confirmed Drillbomb installation 16114 | -3/Protoforge | UFD began Drillbomb countdown 16170 | -3/Protoforge | Spotted Executioner 16170 | -3/Protoforge | Spotted Executioner 16214 | *** | Defending 0bPrime! Last Messages --------------- in T-10, a moment of silence for all those who spit bolts to get us here today. 16204_ N-04 Retriever inserts Lgt. Deuterium Engine into Forge Plexus. 16205_ 0bP_NET: PK-764! For learning about those Assembled things over in 0b10 the hard way, so we didn't have to. 16205_ N-04 Retriever inserts Mak. Thermal Plating into Forge Plexus. 16206_ 0bP_NET: Also Frameworth for that epic save with the barrage of overtuned dakka. Respect the dakka. 16207_ 0bP_NET: And S4-LTN's pet Recycler. I didn't mean it, but I was short on matter and it was a natural reflex. 16208_ 0bP_NET: Oh yeah, T-6 by the way. 16209_ 0bP_NET: LU-1G1, we know you're out there, digging away, so no moment of silence needed for you. 16210_ 0bP_NET: DD-05H though, you were a good one, we'll never forget the way you smashed your way west and just never stopped smashing. 16211_ 0bP_NET: Well my eulogizing is soon to be interrupted by scenes of half of Protoforge collapsing in on itself. Be careful out there. 16212_ 0bP_NET: T-2! 16212_ N-04 Retriever collects Mak. Salvage Targeting Computer. 16213_ 0bP_NET: And that's a wrap. Map ----- +----------------------------------------------------+ | """""""""""""""""""% % % %" "" "" "#??????? | | """""""""""""""""""""%% % "#??????? | | """"""""""""""""""""""" % %%%% " "#??????? | | """""""""""""""""""""""" " " " "#??????? | | """""""""""""""""""""""""%% %[ """ " "#??????? | | """""""""""""""""""""""""% %"%[! """ " "#??????? | | """"""""""""""""""""""""" %"% |" " "#??????? | | """"""""""""""""""""""""""% sss !* " "#??????? | | """""""""""""""""""""""""" s % "" " " "#??????? | | """""""""""""""""""""""""" % s " #??????? | | """""""""""""""""""""""""" %/! " #??????? | | """"""""""""""""""""""""""% *%! #??????? | | """"""""""""""""""""""""""3*%= ##?????? | | """""""""""""""""""""""""" =!! " #?????? | | """""""""""""""""""""""""" [![%[ " #?????? | | """""""""""""""""""""""""" =%=!! "" ##?????? | | """"""""""""""""""""""""" *!**%! " % %#??????? | | """"""""""""""""""""""""" """![! " #??????? | | """"""""""""""""""""""""" " E """ #??????? | | """""""""""""""""""""""" " ! " #??????? | | """"""""""""""""""""""" js" !%s" %" #??????? | | %""""""""""""""""""""" [% E %[ """% ##?????? | | """"""""""""""""""" s n%s"SS E "" ;#?????? | | """""""""""""""""jSS % sSS % ##?????? | | """"""""""""""" "SS% ;#?????? | | """"""""" "SS @ % % % ##?????? | | " % E"" "SS % %% "" #??????? | | " """"" SS E%" % %% % "" #??????? | | % %"% SS" " %% "" ###????? | | "%""s"""" "" <<#????? | | """ """ %% %"%% """"" % % % <<#????? | | " """" %" %% % <<#????? | | "% % "% "" % """ <<#????? | | " % "% " % <<#????? | | %% % % % """" " "" <<#????? | | " "% "" """ " " ###????? | | " " % "% """ " " #??????? | | % % " #??????? | | % % """"""""" """ #??????? | | " " """ #??????? | | """""""""" " " " " """ "#??????? | | ##"##########################+++###########??????? | | # ""????????????????????#"" ""#????????????? | | ####??????????????????###" "###??????????? | | ??????????????????????#"" ""#??????????? | | ??????????????????????#"" ""#??????????? | | ??????????????????????#"" ""#??????????? | | ??????????????????????#"Y Y"#??????????? | | ??????????????????????#"" ""#??????????? | | ??????????????????????#"" ""#??????????? | +----------------------------------------------------+ Best States ------------- Heat Dissipation 75 Energy Generation 63 Energy Capacity 1650 Matter Stores 841 Matter Capacity 1050 Sight Range 23 Robot Scan Range 18 Terrain Scan Range 20 Terrain Scan Density 85 Jamming Range 14 Cloak Strength 4 Armor Coverage 675 Resistance: TH 15 Core Shielding 90 Propulsion Shielding 90 Utility Shielding 90 Weapon Shielding 90 Point Defense Rating 480 Evasion (%) 90 Targeting Accuracy 6 Core Analysis 12 Armor Integrity Analysis 50 Recoil Reduction 4 Kinecelleration 66 Salvage Targeting 5 Offensive Hacking 48 Defensive Hacking 24 Authchip Count 3 Item Schematics ----------------- Exp. Propulsion Shielding | -5/Factory | Hacked Exp. Utility Shielding | -5/Factory | Hacked Imp. VTOL Module | -5/Factory | Scanalyzed Assault Drone Bay | -5/Zhirov | Free Exp. Heat Sink | -5/Zhirov | Free Exp. Optical Array | -5/Zhirov | Free Imp. Arc Thrower | -5/Zhirov | Free Cld. VTOL Module | -4/Factory | Hacked Enh. Force Rifle | -3/Protoforge | Archive Robot Schematics ------------------ A-02 Transporter | -3/Protoforge | Archive Fabricated ------------ Exp. Propulsion Shielding | x1 | -5/Factory Imp. VTOL Module | x1 | -4/Factory Repaired ---------- Bore Cannon | 26% | -6/Extension Centrium Medium Armor Plating | 41% | -5/Factory Field Propulsion Drive | 3% | -4/Factory Phasing Sabre | 12% | -3/Research Exp. Propulsion Shielding | 28% | -3/Quarantine Alien Tech Used ----------------- Integrated Reactor Subatomic Replicator Core Cannon Dimensional Node Initializer Supercharged TR Transdimensional Reconstructor Achievements -------------- Killing Spree Challenges ------------ None Game ------ Seed LegDisintegrationBlaster Manual? 0 Play Time 05:31:43 Cumulative 131.2 hours Start 2025.07.12 @ 13:03:40 End 2025.07.13 @ 00:33:28 Sessions 4 Manual Loads 0 Difficulty Rogue Special Mode None Game No. 74 Rogue 74 Adventurer 0 Explorer 0 Win Type 9 Total 13 Types 3/1/4/1/1/0/0/1/0/2 Lore% 68 Gallery% 65 Achievement% 62 Wizard Run 0 Options --------- Layout 0 ASCII 0 Keyboard 1 Movement Vi Keybinds 0 Fullscreen 2 Font 18/SmallcapsGlow Map View 76x50 Zoom Use 0% Tactical HUD 1 Map Filters NONE Filters NONE Steam 1 RUN: d91da820-2c55-4248-9499-6c3980aaf080